fUSD/lending_fUSD_20241013
["ID","MTS","AMOUNT","RATE_DAILY","PERIOD"]
[340215257,1728847850056,-500.0,0.00027912,2]
[340215258,1728847850066,-500.0,0.00027912,2]
[340215259,1728847850076,-500.0,0.00027912,2]
[340215260,1728847850086,-500.0,0.00027912,2]
[340215261,1728847850095,-500.0,0.00027912,2]
[340215262,1728847850105,-500.0,0.00027912,2]
[340215263,1728847850115,-500.0,0.00027912,2]
[340215264,1728847850124,-500.0,0.00027912,2]
[340215265,1728847850133,-500.0,0.00027912,2]
[340215266,1728847850143,-500.0,0.00027912,2]
[340215267,1728847850152,-500.0,0.00027912,2]
[340215268,1728847850162,-500.0,0.00027912,2]
[340215269,1728847850172,-500.0,0.00027912,2]
[340215270,1728847850181,-500.0,0.00027912,2]
[340215271,1728847850191,-500.0,0.00027912,2]
[340215272,1728847850200,-500.0,0.00027912,2]
[340215273,1728847850210,-500.0,0.00027912,2]
[340215274,1728847850219,-500.0,0.00027912,2]
[340215275,1728847850229,-500.0,0.00027912,2]
[340215276,1728847850238,-500.0,0.00027912,2]
[340215277,1728847850247,-500.0,0.00027912,2]
[340215278,1728847850258,-500.0,0.00027912,2]
[340215279,1728847850267,-500.0,0.00027912,2]
[340215280,1728847850276,-500.0,0.00027912,2]
[340215281,1728847850285,-500.0,0.00027912,2]
[340215282,1728847850294,-500.0,0.00027912,2]
[340215283,1728847850303,-500.0,0.00027912,2]
[340215284,1728847850312,-500.0,0.00027912,2]
[340215285,1728847850321,-500.0,0.00027912,2]
[340215286,1728847850331,-500.0,0.00027912,2]
[340215287,1728847850340,-500.0,0.00027912,2]
[340215288,1728847850350,-500.0,0.00027912,2]
[340215289,1728847850359,-500.0,0.00027912,2]
[340215290,1728847850369,-500.0,0.00027912,2]
[340215291,1728847850378,-500.0,0.00027912,2]
[340215292,1728847850387,-400.0,0.00027921,10]
[340215293,1728847850396,-500.0,0.00027921,2]
[340215294,1728847850407,-500.0,0.00027921,2]
[340215295,1728847850417,-500.0,0.00027921,2]
[340215296,1728847850428,-500.0,0.00027921,2]
[340215297,1728847850438,-500.0,0.00027921,2]
[340215298,1728847850447,-500.0,0.00027921,2]
[340215299,1728847850457,-500.0,0.00027921,2]
[340215300,1728847850466,-500.0,0.00027921,2]
[340215301,1728847850475,-500.0,0.00027921,2]
[340215302,1728847850485,-500.0,0.00027921,2]
[340215303,1728847850495,-1464.96,0.00027921,2]
[340215304,1728847850504,-500.0,0.00027921,2]
[340215305,1728847850515,-500.0,0.00027921,2]
[340215306,1728847850527,-469.0,0.00027922,5]
[340215307,1728847850537,-500.0,0.00027922,2]
[340215308,1728847850546,-500.0,0.00027922,2]
[340215309,1728847850555,-500.0,0.00027922,2]
[340215310,1728847850565,-500.0,0.00027922,2]
[340215311,1728847850575,-500.0,0.00027922,2]
[340215312,1728847850584,-500.0,0.00027922,2]
[340215313,1728847850596,-500.0,0.00027922,2]
[340215314,1728847850605,-500.0,0.00027922,2]
[340215315,1728847850615,-500.0,0.00027922,2]
[340215316,1728847850624,-500.0,0.00027922,2]
[340215317,1728847850633,-500.0,0.00027922,2]
[340215318,1728847850643,-500.0,0.00027922,2]
[340215319,1728847850652,-500.0,0.00027922,2]
[340215320,1728847850662,-500.0,0.00027922,2]
[340215321,1728847850673,-500.0,0.00027922,2]
[340215322,1728847850682,-500.0,0.00027922,2]
[340215323,1728847850692,-500.0,0.00027922,2]
[340215324,1728847850702,-500.0,0.00027922,2]
[340215325,1728847850712,-500.0,0.00027922,2]
[340215326,1728847850723,-500.0,0.00027922,2]
[340215327,1728847850735,-500.0,0.00027922,2]
[340215328,1728847850747,-500.0,0.00027922,2]
[340215329,1728847850757,-500.0,0.00027922,2]
[340215330,1728847850767,-500.0,0.00027922,2]
[340215331,1728847850776,-500.0,0.00027922,2]
[340215332,1728847850786,-500.0,0.00027922,2]
[340215333,1728847850796,-500.0,0.00027922,2]
[340215334,1728847850806,-500.0,0.00027922,2]
[340215335,1728847850816,-500.0,0.00027922,2]
[340215336,1728847850826,-500.0,0.00027922,2]
[340215337,1728847850835,-500.0,0.00027922,2]
[340215338,1728847850844,-500.0,0.00027922,2]
[340215339,1728847850853,-500.0,0.00027922,2]
[340215340,1728847850863,-500.0,0.00027922,2]
[340215341,1728847850873,-500.0,0.00027922,2]
[340215342,1728847850882,-500.0,0.00027922,2]
[340215343,1728847850892,-500.0,0.00027922,2]
[340215344,1728847850901,-500.0,0.00027922,2]
[340215345,1728847850911,-500.0,0.00027922,2]
[340215346,1728847850920,-500.0,0.00027922,2]
[340215347,1728847850930,-500.0,0.00027922,2]
[340215348,1728847850939,-1000.0,0.00028,2]
[340215349,1728847850948,-3000.0,0.000288,2]
[340215350,1728847850958,-205.27,0.00029589,2]
[340215351,1728847850968,-1050.0,0.0003,2]
[340215352,1728847850978,-412.8646321,0.0003,2]
[340215353,1728847850988,-20620.26650602,0.0003,2]
[340215354,1728847850998,-178.0,0.0003,2]
[340215355,1728847851008,-22261.85,0.00030057,5]
[340215356,1728847851018,-22807.46,0.00030228,5]
[340215357,1728847851028,-500.0,0.00030815,2]
[340215358,1728847851038,-150.0,0.00030815,2]
[340215359,1728847851047,-500.0,0.00030815,2]
[340215360,1728847851057,-500.0,0.00030815,2]
[340215361,1728847851066,-500.0,0.00030815,2]
[340215362,1728847851076,-500.0,0.00030815,2]
[340215363,1728847851086,-298.81837609,0.00030815,2]
[340215364,1728847851096,-500.0,0.00030815,2]
[340215365,1728847851107,-500.0,0.00030815,2]
[340215366,1728847851117,-500.0,0.00030815,2]
[340215367,1728847851128,-500.0,0.00030815,2]
[340215368,1728847851139,-500.0,0.00030815,2]
[340215369,1728847851151,-500.0,0.00030815,2]
[340215370,1728847851163,-500.0,0.00030815,2]
[340215371,1728847851172,-500.0,0.00030815,2]
[340215372,1728847851181,-401.8101128,0.00030815,2]
[340215373,1728847851192,-574.35,0.00030815,2]
[340215374,1728847851203,-22064.97,0.00030816,5]
[340215375,1728847851213,-22948.64,0.00031008,5]
[340215376,1728847851224,-151.49,0.00031083,2]
[340215377,1728847851234,-200.0,0.000315,2]
[340215378,1728847851247,-3000.0,0.000315,2]
[340215379,1728847851256,-4151.0,0.000318,2]
[340215380,1728847851265,-537.65872737,0.000318,2]
[340215381,1728847851275,-1316.0,0.000318,2]
[340215382,1728847851284,-1100.0,0.00032,2]
[340215383,1728847851293,-814.25732,0.00032,8]
[340215384,1728847851303,-152.0,0.00032037,2]
[340215385,1728847851312,-500.0,0.00032283,2]
[340215386,1728847851322,-500.0,0.00032283,2]
[340215387,1728847851331,-500.0,0.00032283,2]
[340215388,1728847851341,-500.0,0.00032283,2]
[340215389,1728847851350,-500.0,0.00032283,2]
[340215390,1728847851359,-500.0,0.00032283,2]
[340215391,1728847851369,-1464.96,0.00032283,2]
[340215392,1728847851380,-500.0,0.00032283,2]
[340215393,1728847851392,-500.0,0.00032283,2]
[340215394,1728847851403,-22510.27,0.00032284,5]
[340215395,1728847851414,-400.0,0.00032359,10]
[340215396,1728847851425,-169839.72530936,0.0003236,2]
[340215397,1728847851434,-24909.87439971,0.0003236,2]
[340215398,1728847851445,-134770.62946321,0.0003236,2]
[340215399,1728847851454,-54590.56280501,0.0003236,2]
[340215400,1728847851463,-166520.34209358,0.0003236,2]
[340215401,1728847851472,-1499.89688582,0.0003236,2]
[340215402,1728847851481,-150774.96475315,0.0003236,2]
[340215403,1728847851490,-327656.47050277,0.0003236,2]
[340215404,1728847851499,-22879.04246015,0.0003236,2]
[340215405,1728847851509,-1956.32572334,0.0003236,2]
[340215406,1728847851522,-200.0,0.0003236,2]
[340215407,1728847851535,-782.8283,0.00032777,2]
[340215408,1728847851547,-4569.04297489,0.000328,2]
[340215409,1728847851560,-346.43,0.00033151,120]
[340215410,1728847851573,-1150.0,0.00034,2]
[340215411,1728847851585,-3000.0,0.000342,2]
[340215412,1728847851597,-150.0,0.00034302,2]
[340215413,1728847851608,-151.49,0.00035384,2]
[340215414,1728847851620,-1200.0,0.00036,2]
[340215415,1728847851631,-1173.49135273,0.00036,2]
[340215416,1728847851643,-500.0,0.00036999,2]
[340215417,1728847851652,-500.0,0.00036999,2]
[340215418,1728847851662,-500.0,0.00036999,2]
[340215419,1728847851672,-500.0,0.00036999,2]
[340215420,1728847851682,-3000.0,0.00037,2]
[340215421,1728847851693,-3388.39980208,0.00037,2]
[340215422,1728847851704,-4151.0,0.000373,2]
[340215423,1728847851715,-4121.71538395,0.0003759,2]
[340215424,1728847851727,-165.17581611,0.000378,2]
[340215425,1728847851738,-53392.92723399,0.000379,2]
[340215426,1728847851748,-1250.0,0.00038,2]
[340215427,1728847851760,-9452.23298464,0.0003818,2]
[340215428,1728847851771,-338.5751271,0.00038367,2]
[340215429,1728847851782,-2761.37665868,0.00038367,2]
[340215430,1728847851795,-1000.0,0.00038466,120]
[340215431,1728847851806,-429.44,0.0003865,2]
[340215432,1728847851816,-220.23828566,0.000388,120]
[340215433,1728847851828,-151.49,0.00039686,2]
[340215434,1728847851839,-3000.0,0.000397,2]
[340215435,1728847851851,-217.0,0.0003978,2]
[340215436,1728847851861,-195.40919049,0.00039998,10]
[340215437,1728847851872,-95636.88706365,0.00039999,5]
[340215438,1728847851883,-1300.0,0.0004,2]
[340215439,1728847851895,-372.0146948,0.0004,2]
[340215440,1728847851907,-208.59093319,0.0004,2]
[340215441,1728847851918,-157.0,0.00041096,2]
[340215442,1728847851930,-10024.06411769,0.00041897,2]
[340215443,1728847851942,-12000.0,0.00042,2]
[340215444,1728847851954,-3000.0,0.000425,2]
[340215445,1728847851965,-151.49,0.00043987,2]
[340215446,1728847851976,-346.43,0.00044384,120]
[340215447,1728847851987,-30637.32368809,0.000448,60]
[340215448,1728847851998,-1500.0,0.000452,2]
[340215449,1728847852009,-1500.0,0.000479,2]
[340215450,1728847852020,-151.49,0.00048288,2]
[340215451,1728847852032,-50000.0,0.0004949,120]
[340215452,1728847852043,-29466.68,0.00050342,120]
[340215453,1728847852054,-29537.35,0.00051395,120]
[340215454,1728847852064,-181.73,0.000517,120]
[340215455,1728847852076,-151.49,0.0005259,2]
[340215456,1728847852087,-30106.62,0.00052832,120]
[340215457,1728847852099,-414.5061306,0.00052862,120]
[340215458,1728847852111,-414.5061306,0.00053096,120]
[340215459,1728847852122,-414.5061306,0.00053293,120]
[340215460,1728847852133,-414.5061306,0.00053495,120]
[340215461,1728847852144,-414.5061306,0.00053888,120]
[340215462,1728847852156,-414.5061306,0.00054111,120]
[340215463,1728847852166,-414.5061306,0.00054419,120]
[340215464,1728847852176,-414.5061306,0.0005468,120]
[340215465,1728847852187,-532.0,0.00054795,120]
[340215466,1728847852196,-771.0,0.00054795,120]
[340215467,1728847852207,-414.5061306,0.00054935,120]
[340215468,1728847852219,-50000.0,0.00055,55]
[340215469,1728847852228,-50000.0,0.00055,65]
[340215470,1728847852241,-414.5061306,0.00055184,120]
[340215471,1728847852252,-414.5061306,0.00055537,120]
[340215472,1728847852263,-346.43,0.00055616,120]
[340215473,1728847852273,-414.5061306,0.0005588,120]
[340215474,1728847852285,-414.5061306,0.00056112,120]
[340215475,1728847852296,-414.5061306,0.00056347,120]
[340215476,1728847852307,-414.5061306,0.00056686,120]
[340215477,1728847852319,-414.5061306,0.0005685,120]
[340215478,1728847852331,-2110.0,0.00057,2]
[340215479,1728847852345,-414.5061306,0.00057141,120]
[340215480,1728847852358,-414.5061306,0.00057292,120]
[340215481,1728847852370,-2110.0,0.000575,2]
[340215482,1728847852384,-414.5061306,0.00057738,120]
[340215483,1728847852396,-2110.0,0.00058,2]
[340215484,1728847852410,-414.5061306,0.00058049,120]
[340215485,1728847852423,-414.5061306,0.00058242,120]
[340215486,1728847852436,-414.5061306,0.0005841,120]
[340215487,1728847852448,-2110.0,0.000585,2]
[340215488,1728847852461,-271.947,0.000588,60]
[340215489,1728847852473,-414.5061306,0.00058816,120]
[340215490,1728847852483,-2110.0,0.00059,2]
[340215491,1728847852492,-414.5061306,0.00059158,120]
[340215492,1728847852502,-414.5061306,0.00059372,120]
[340215493,1728847852512,-414.5061306,0.00059465,120]
[340215494,1728847852525,-2110.0,0.000595,2]
[340215495,1728847852535,-2000.0,0.000597,2]
[340215496,1728847852546,-414.5061306,0.00059789,120]
[340215497,1728847852555,-3386.27557811,0.0005989,2]
[340215498,1728847852566,-500.0,0.00059978,120]
[340215499,1728847852576,-500.0,0.00059978,120]
[340215500,1728847852587,-500.0,0.00059978,120]
[340215501,1728847852598,-500.0,0.00059978,120]
[340215502,1728847852608,-500.0,0.00059978,120]
[340215503,1728847852620,-500.0,0.00059978,120]
[340215504,1728847852632,-1464.96,0.00059978,30]
[340215505,1728847852643,-500.0,0.00059978,120]
[340215506,1728847852654,-500.0,0.00059978,120]
[340215507,1728847852665,-500.0,0.0005998,120]
[340215508,1728847852676,-500.0,0.0005998,7]
[340215509,1728847852688,-500.0,0.0005998,120]
[340215510,1728847852702,-500.0,0.0005998,14]
[340215511,1728847852713,-500.0,0.00059988,120]
[340215512,1728847852723,-500.0,0.00059988,120]
[340215513,1728847852733,-500.0,0.00059988,120]
[340215514,1728847852744,-500.0,0.00059988,120]
[340215515,1728847852758,-500.0,0.00059988,120]
[340215516,1728847852771,-500.0,0.00059988,120]
[340215517,1728847852782,-1464.96,0.00059988,30]
[340215518,1728847852793,-500.0,0.00059988,120]
[340215519,1728847852803,-500.0,0.00059988,120]
[340215520,1728847852815,-511.06583496,0.00059989,120]
[340215521,1728847852825,-500.0,0.00059989,120]
[340215522,1728847852836,-500.0,0.00059989,120]
[340215523,1728847852846,-592.4286238,0.00059989,120]
[340215524,1728847852856,-500.0,0.00059989,120]
[340215525,1728847852868,-500.0,0.00059989,120]
[340215526,1728847852878,-500.0,0.00059989,120]
[340215527,1728847852889,-200.0,0.00059989,7]
[340215528,1728847852899,-200.0,0.00059989,7]
[340215529,1728847852910,-200.0,0.00059989,7]
[340215530,1728847852921,-200.0,0.00059989,7]
[340215531,1728847852931,-200.0,0.00059989,7]
[340215532,1728847852942,-500.0,0.00059989,120]
[340215533,1728847852951,-500.0,0.00059989,120]
[340215534,1728847852962,-500.0,0.00059989,120]
[340215535,1728847852972,-500.0,0.00059989,120]
[340215536,1728847852983,-500.0,0.00059989,120]
[340215537,1728847852993,-500.0,0.00059989,120]
[340215538,1728847853003,-500.0,0.00059989,120]
[340215539,1728847853014,-500.0,0.00059989,120]
[340215540,1728847853024,-500.0,0.00059989,120]
[340215541,1728847853034,-402.22795311,0.00059989,120]
[340215542,1728847853044,-500.0,0.00059989,120]
[340215543,1728847853054,-500.0,0.00059989,120]
[340215544,1728847853064,-299.67988004,0.00059989,120]
[340215545,1728847853075,-500.0,0.00059989,120]
[340215546,1728847853087,-500.0,0.00059989,120]
[340215547,1728847853098,-500.0,0.00059989,120]
[340215548,1728847853110,-500.0,0.00059989,120]
[340215549,1728847853121,-617.475575,0.00059989,120]
[340215550,1728847853131,-500.0,0.00059989,120]
[340215551,1728847853141,-500.0,0.00059989,120]
[340215552,1728847853150,-500.0,0.00059989,120]
[340215553,1728847853160,-500.0,0.00059989,120]
[340215554,1728847853170,-500.0,0.00059989,120]
[340215555,1728847853180,-500.0,0.00059989,120]
[340215556,1728847853190,-500.0,0.00059989,120]
[340215557,1728847853200,-500.0,0.00059989,120]
[340215558,1728847853210,-500.0,0.00059989,120]
[340215559,1728847853220,-500.0,0.00059989,120]
[340215560,1728847853230,-500.0,0.00059989,2]
[340215561,1728847853240,-500.0,0.00059989,120]
[340215562,1728847853250,-500.0,0.00059989,120]
[340215563,1728847853260,-500.0,0.00059989,120]
[340215564,1728847853270,-312.17705646,0.00059989,120]
[340215565,1728847853280,-150.0,0.00059989,120]
[340215566,1728847853290,-150.0,0.00059989,120]
[340215567,1728847853299,-150.0,0.00059989,120]
[340215568,1728847853310,-500.0,0.00059989,120]
[340215569,1728847853320,-500.0,0.00059989,120]
[340215570,1728847853330,-345.21105923,0.00059989,120]
[340215571,1728847853340,-500.0,0.00059989,120]
[340215572,1728847853350,-500.0,0.00059989,120]
[340215573,1728847853359,-500.0,0.00059989,120]
[340215574,1728847853369,-500.0,0.00059989,120]
[340215575,1728847853379,-500.0,0.00059989,120]
[340215576,1728847853388,-500.0,0.00059989,120]
[340215577,1728847853398,-500.0,0.00059989,120]
[340215578,1728847853408,-500.0,0.00059989,120]
[340215579,1728847853418,-500.0,0.00059989,120]
[340215580,1728847853428,-321.20921159,0.00059989,120]
[340215581,1728847853438,-500.0,0.00059989,120]
[340215582,1728847853449,-500.0,0.00059989,120]
[340215583,1728847853459,-500.0,0.00059989,120]
[340215584,1728847853469,-500.0,0.00059989,120]
[340215585,1728847853479,-500.0,0.00059989,120]
[340215586,1728847853490,-500.0,0.00059989,120]
[340215587,1728847853500,-500.0,0.00059989,120]
[340215588,1728847853510,-500.0,0.00059989,120]
[340215589,1728847853523,-500.0,0.00059989,120]
[340215590,1728847853533,-500.0,0.00059989,120]
[340215591,1728847853543,-500.0,0.00059989,120]
[340215592,1728847853553,-500.0,0.00059989,120]
[340215593,1728847853563,-500.0,0.00059989,120]
[340215594,1728847853572,-500.0,0.00059989,120]
[340215595,1728847853582,-500.0,0.00059989,120]
[340215596,1728847853592,-500.0,0.00059989,120]
[340215597,1728847853605,-500.0,0.00059989,120]
[340215598,1728847853618,-500.0,0.00059989,120]
[340215599,1728847853629,-500.0,0.00059989,120]
[340215600,1728847853640,-500.0,0.00059989,120]
[340215601,1728847853651,-500.0,0.00059989,120]
[340215602,1728847853663,-375.0,0.00059989,14]
[340215603,1728847853674,-500.0,0.00059989,120]
[340215604,1728847853685,-500.0,0.00059989,120]
[340215605,1728847853697,-500.0,0.00059989,120]
[340215606,1728847853706,-500.0,0.00059989,120]
[340215607,1728847853717,-500.0,0.00059989,120]
[340215608,1728847853728,-243.56485413,0.00059989,120]
[340215609,1728847853738,-500.0,0.00059989,120]
[340215610,1728847853748,-177.38,0.00059989,120]
[340215611,1728847853759,-500.0,0.00059989,120]
[340215612,1728847853769,-563.97665536,0.00059989,120]
[340215613,1728847853779,-500.0,0.00059989,120]
[340215614,1728847853788,-500.0,0.00059989,120]
[340215615,1728847853799,-500.0,0.00059989,120]
[340215616,1728847853809,-500.0,0.00059989,120]
[340215617,1728847853819,-500.0,0.00059989,120]
[340215618,1728847853830,-500.0,0.00059989,120]
[340215619,1728847853840,-500.0,0.00059989,120]
[340215620,1728847853851,-500.0,0.00059989,120]
[340215621,1728847854102,-500.0,0.00059989,120]
[340215622,1728847854114,-262.44354331,0.00059989,120]
[340215623,1728847854123,-500.0,0.00059989,120]
[340215624,1728847854133,-500.0,0.00059989,120]
[340215625,1728847854143,-500.0,0.00059989,120]
[340215626,1728847854152,-669.67,0.00059989,7]
[340215627,1728847854161,-669.67,0.00059989,7]
[340215628,1728847854170,-669.67,0.00059989,7]
[340215629,1728847854179,-669.67,0.00059989,7]
[340215630,1728847854189,-669.67,0.00059989,7]
[340215631,1728847854198,-500.0,0.00059989,120]
[340215632,1728847854207,-500.0,0.00059989,120]
[340215633,1728847854216,-500.0,0.00059989,120]
[340215634,1728847854225,-500.0,0.00059989,120]
[340215635,1728847854235,-500.0,0.00059989,120]
[340215636,1728847854244,-500.0,0.00059989,120]
[340215637,1728847854253,-500.0,0.00059989,120]
[340215638,1728847854262,-500.0,0.00059989,120]
[340215639,1728847854272,-500.0,0.00059989,120]
[340215640,1728847854281,-500.0,0.00059989,120]
[340215641,1728847854290,-500.0,0.00059989,120]
[340215642,1728847854300,-500.0,0.00059989,120]
[340215643,1728847854309,-500.0,0.00059989,120]
[340215644,1728847854319,-574.35,0.00059989,120]
[340215645,1728847854328,-500.0,0.00059989,2]
[340215646,1728847854338,-574.35,0.00059989,120]
[340215647,1728847854347,-574.35,0.00059989,120]
[340215648,1728847854356,-500.0,0.00059998,120]
[340215649,1728847854365,-500.0,0.00059998,7]
[340215650,1728847854374,-500.0,0.00059998,120]
[340215651,1728847854383,-500.0,0.00059998,14]
[340215652,1728847854393,-418.07939226,0.00059999,120]
[340215653,1728847854402,-200.0,0.00059999,7]
[340215654,1728847854411,-189.5452821,0.00059999,7]
[340215655,1728847854420,-500.0,0.00059999,120]
[340215656,1728847854430,-500.0,0.00059999,120]
[340215657,1728847854439,-500.0,0.00059999,120]
[340215658,1728847854449,-500.0,0.00059999,120]
[340215659,1728847854457,-602.63433229,0.00059999,120]
[340215660,1728847854466,-500.0,0.00059999,120]
[340215661,1728847854476,-500.0,0.00059999,120]
[340215662,1728847854485,-500.0,0.00059999,120]
[340215663,1728847854494,-500.0,0.00059999,120]
[340215664,1728847854503,-500.0,0.00059999,120]
[340215665,1728847854513,-172.91047534,0.00059999,120]
[340215666,1728847854525,-500.0,0.00059999,120]
[340215667,1728847854535,-500.0,0.00059999,120]
[340215668,1728847854544,-500.0,0.00059999,120]
[340215669,1728847854553,-500.0,0.00059999,120]
[340215670,1728847854563,-500.0,0.00059999,120]
[340215671,1728847854572,-500.0,0.00059999,120]
[340215672,1728847854581,-500.0,0.00059999,120]
[340215673,1728847854591,-500.0,0.00059999,120]
[340215674,1728847854602,-150.0,0.00059999,120]
[340215675,1728847854611,-250.37827284,0.00059999,120]
[340215676,1728847854620,-500.0,0.00059999,120]
[340215677,1728847854629,-500.0,0.00059999,120]
[340215678,1728847854638,-500.0,0.00059999,120]
[340215679,1728847854647,-500.0,0.00059999,120]
[340215680,1728847854657,-500.0,0.00059999,120]
[340215681,1728847854666,-500.0,0.00059999,120]
[340215682,1728847854676,-500.0,0.00059999,120]
[340215683,1728847854684,-500.0,0.00059999,120]
[340215684,1728847854694,-500.0,0.00059999,120]
[340215685,1728847854703,-269.04902795,0.00059999,120]
[340215686,1728847854712,-464.2,0.00059999,120]
[340215687,1728847854721,-500.0,0.00059999,120]
[340215688,1728847854731,-641.29725882,0.00059999,120]
[340215689,1728847854740,-257.80885428,0.00059999,120]
[340215690,1728847854750,-500.0,0.00059999,120]
[340215691,1728847854759,-500.0,0.00059999,120]
[340215692,1728847854769,-500.0,0.00059999,120]
[340215693,1728847854778,-500.0,0.00059999,120]
[340215694,1728847854787,-500.0,0.00059999,120]
[340215695,1728847854797,-500.0,0.00059999,120]
[340215696,1728847854806,-500.0,0.00059999,120]
[340215697,1728847854816,-500.0,0.00059999,120]
[340215698,1728847854826,-500.0,0.00059999,120]
[340215699,1728847854835,-500.0,0.00059999,120]
[340215700,1728847854844,-500.0,0.00059999,120]
[340215701,1728847854854,-500.0,0.00059999,120]
[340215702,1728847854863,-500.0,0.00059999,120]
[340215703,1728847854873,-493.9,0.00059999,120]
[340215704,1728847854882,-500.0,0.00059999,7]
[340215705,1728847854891,-500.0,0.00059999,7]
[340215706,1728847854900,-500.0,0.00059999,7]
[340215707,1728847854910,-500.0,0.00059999,7]
[340215708,1728847854919,-500.0,0.00059999,7]
[340215709,1728847854929,-500.0,0.00059999,7]
[340215710,1728847854939,-500.0,0.00059999,7]
[340215711,1728847854948,-500.0,0.00059999,7]
[340215712,1728847854957,-219.69,0.00059999,7]
[340215713,1728847854967,-500.0,0.00059999,120]
[340215714,1728847854976,-500.0,0.00059999,120]
[340215715,1728847854985,-500.0,0.00059999,120]
[340215716,1728847854994,-500.0,0.00059999,120]
[340215717,1728847855003,-500.0,0.00059999,120]
[340215718,1728847855013,-500.0,0.00059999,120]
[340215719,1728847855024,-500.0,0.00059999,120]
[340215720,1728847855033,-500.0,0.00059999,120]
[340215721,1728847855043,-500.0,0.00059999,120]
[340215722,1728847855053,-500.0,0.00059999,120]
[340215723,1728847855063,-500.0,0.00059999,120]
[340215724,1728847855073,-500.0,0.00059999,120]
[340215725,1728847855083,-500.0,0.00059999,120]
[340215726,1728847855092,-500.0,0.00059999,120]
[340215727,1728847855102,-500.0,0.00059999,120]
[340215728,1728847855111,-500.0,0.00059999,120]
[340215729,1728847855120,-500.0,0.00059999,120]
[340215730,1728847855129,-500.0,0.00059999,120]
[340215731,1728847855138,-500.0,0.00059999,120]
[340215732,1728847855147,-500.0,0.00059999,120]
[340215733,1728847855156,-256.04,0.00059999,120]
[340215734,1728847855165,-500.0,0.00059999,120]
[340215735,1728847855175,-500.0,0.00059999,120]
[340215736,1728847855184,-500.0,0.00059999,120]
[340215737,1728847855193,-500.0,0.00059999,120]
[340215738,1728847855203,-500.0,0.00059999,120]
[340215739,1728847855212,-500.0,0.00059999,120]
[340215740,1728847855222,-500.0,0.00059999,120]
[340215741,1728847855232,-409.63396824,0.00059999,120]
[340215742,1728847855242,-669.67,0.00059999,7]
[340215743,1728847855252,-669.67,0.00059999,7]
[340215744,1728847855261,-669.67,0.00059999,7]
[340215745,1728847855271,-669.67,0.00059999,7]
[340215746,1728847855281,-669.67,0.00059999,7]
[340215747,1728847855291,-669.67,0.00059999,7]
[340215748,1728847855301,-669.67,0.00059999,7]
[340215749,1728847855311,-669.67,0.00059999,7]
[340215750,1728847855321,-669.67,0.00059999,7]
[340215751,1728847855331,-669.67,0.00059999,7]
[340215752,1728847855341,-669.67,0.00059999,7]
[340215753,1728847855354,-669.67,0.00059999,7]
[340215754,1728847855364,-669.67,0.00059999,7]
[340215755,1728847855374,-669.67,0.00059999,7]
[340215756,1728847855387,-669.67,0.00059999,7]